bitfinex/quotes_BTCUSD_20241229
["timestamp","ask_amount","ask_price","bid_price","bid_amount"]
[1735472206835,0.790991,95384.0,95383.0,0.09656528]
[1735472207255,0.789991,95384.0,95383.0,0.09656528]
[1735472207495,0.789991,95386.0,95383.0,0.09656528]
[1735472208796,0.001,95384.0,95383.0,0.09756528]
[1735472208995,0.790991,95384.0,95383.0,0.09656528]
[1735472209212,0.789991,95384.0,95383.0,0.09656528]
[1735472209389,0.789991,95386.0,95383.0,0.09656528]
[1735472210127,0.790991,95386.0,95383.0,0.09756528]
[1735472210326,0.789991,95385.0,95383.0,0.09656528]
[1735472211399,0.789991,95385.0,95383.0,0.17566528]
[1735472211842,0.80644405,95385.0,95383.0,0.17566528]
[1735472212043,0.789991,95384.0,95383.0,0.17566528]
[1735472212906,0.789991,95384.0,95383.0,0.17666528]
[1735472213326,0.790991,95384.0,95383.0,0.17566528]
[1735472213525,0.790991,95384.0,95383.0,0.17666528]
[1735472216694,0.80744407,95384.0,95383.0,0.17666528]
[1735472217828,0.790991,95384.0,95383.0,0.17666528]
[1735472220807,0.80744407,95384.0,95383.0,0.17666528]
[1735472223538,0.790991,95384.0,95383.0,0.17666528]
[1735472229855,0.789991,95384.0,95383.0,0.17566528]
[1735472230057,0.789991,95386.0,95383.0,0.17566528]
[1735472230405,0.002,95384.0,95383.0,0.17566528]
[1735472230587,0.790991,95384.0,95383.0,0.17566528]
[1735472230830,0.791991,95384.0,95383.0,0.17566528]
[1735472231034,0.80844407,95384.0,95383.0,0.17566528]
[1735472231216,0.80744407,95384.0,95383.0,0.17566528]
[1735472231870,0.80644407,95384.0,95383.0,0.17566528]
[1735472232250,0.80744407,95384.0,95383.0,0.17566528]
[1735472232825,0.80644407,95384.0,95383.0,0.17566528]
[1735472233027,0.80744407,95384.0,95383.0,0.17566528]
[1735472233786,0.791991,95384.0,95383.0,0.17566528]
[1735472240461,0.002,95384.0,95383.0,0.17566528]
[1735472240671,0.791991,95384.0,95383.0,0.17566528]
[1735472241069,0.80844295,95384.0,95383.0,0.17566528]
[1735472243626,0.791991,95384.0,95383.0,0.17566528]
[1735472245982,0.791991,95384.0,95383.0,0.22446528]
[1735472246611,0.80844368,95384.0,95383.0,0.22446528]
[1735472247916,0.791991,95384.0,95383.0,0.22446528]
[1735472250772,0.80844358,95384.0,95383.0,0.22446528]
[1735472253682,0.791991,95384.0,95383.0,0.22446528]
[1735472254110,0.002,95384.0,95383.0,0.22446528]
[1735472254308,0.791991,95384.0,95383.0,0.22446528]
[1735472258762,0.649,95384.0,95383.0,0.22446528]
[1735472260001,0.648,95384.0,95383.0,0.22446528]
[1735472260360,0.648,95384.0,95383.0,0.22946528]
[1735472260561,0.647,95384.0,95383.0,0.22446528]
[1735472260785,0.789991,95386.0,95383.0,0.22446528]
[1735472261007,0.79545243,95384.0,95383.0,0.22546528]
[1735472261453,0.79545243,95384.0,95383.0,0.22946528]
[1735472261630,0.79545243,95384.0,95383.0,0.22446528]
[1735472261855,0.79545243,95384.0,95383.0,0.22546528]
[1735472262671,0.69645243,95384.0,95383.0,0.22546528]
[1735472263210,0.69645243,95384.0,95383.0,0.22946528]
[1735472263415,0.69645243,95384.0,95383.0,0.22546528]
[1735472263637,0.68,95384.0,95383.0,0.22546528]
[1735472263868,0.789991,95386.0,95383.0,0.23046528]
[1735472264407,0.789991,95386.0,95385.0,0.09639448]
[1735472266659,0.80644334,95386.0,95385.0,0.09639448]
[1735472267594,0.80644334,95386.0,95385.0,0.10039448]
[1735472267736,0.80644334,95386.0,95385.0,0.10139448]
[1735472273753,0.789991,95386.0,95385.0,0.10139448]
[1735472278567,0.80644329,95386.0,95385.0,0.10139448]
[1735472278807,0.80644329,95386.0,95385.0,0.10156528]
[1735472283535,0.789991,95386.0,95385.0,0.10156528]
[1735472285272,8.54e-05,95387.0,95385.0,0.10156528]
[1735472285390,0.789991,95386.0,95385.0,0.10156528]
[1735472286934,0.80644331,95386.0,95385.0,0.10156528]
[1735472288302,0.789991,95386.0,95385.0,0.10156528]
[1735472289724,0.789991,95386.0,95385.0,0.10056528]
[1735472289884,0.789991,95386.0,95385.0,0.09656528]
[1735472290350,0.789991,95386.0,95385.0,0.09956528]
[1735472290463,0.789991,95386.0,95385.0,0.09656528]
[1735472290894,0.789991,95386.0,95385.0,0.09956528]
[1735472291087,0.80644331,95386.0,95385.0,0.09956528]
[1735472293547,0.789991,95386.0,95385.0,0.09956528]
[1735472296517,0.80644334,95386.0,95385.0,0.09956528]
[1735472303619,0.789991,95386.0,95385.0,0.09956528]
[1735472307070,8.54e-05,95387.0,95385.0,0.09956528]
[1735472307274,0.789991,95386.0,95385.0,0.09956528]
[1735472308200,0.80644336,95386.0,95385.0,0.09956528]
[1735472313635,0.789991,95386.0,95385.0,0.09956528]
[1735472319747,0.789991,95386.0,95385.0,0.09656528]
[1735472319748,0.55930729,95386.0,95385.0,0.09656528]
[1735472319962,0.559308,95386.0,95385.0,0.09656528]
[1735472320271,0.559308,95386.0,95385.0,0.09856528]
[1735472320438,0.559308,95386.0,95385.0,0.09656528]
[1735472320633,0.559308,95386.0,95385.0,0.09856528]
[1735472320863,0.57576042,95386.0,95385.0,0.09856528]
[1735472323606,0.559308,95386.0,95385.0,0.09856528]
[1735472330913,0.57576044,95386.0,95385.0,0.09856528]
[1735472333521,0.559308,95386.0,95385.0,0.09856528]
[1735472336615,0.57576044,95386.0,95385.0,0.09856528]
[1735472337876,0.559308,95386.0,95385.0,0.09856528]
[1735472338061,0.55921645,95386.0,95385.0,0.09856528]
[1735472339101,0.55930185,95386.0,95385.0,0.09856528]
[1735472340037,0.3768554,95386.0,95385.0,0.09856528]
[1735472340864,0.39330784,95386.0,95385.0,0.09856528]
[1735472345201,0.3768554,95386.0,95385.0,0.09856528]
[1735472346794,8.54e-05,95386.0,95385.0,0.17946528]
[1735472348409,0.0165375,95386.0,95385.0,0.17946528]
[1735472348820,0.0165375,95386.0,95385.0,0.18046528]
[1735472349326,0.0165375,95386.0,95385.0,0.17746528]
[1735472349511,0.0165375,95386.0,95385.0,0.18146528]
[1735472350012,0.0165375,95386.0,95385.0,0.18246528]
[1735472350513,0.0165375,95386.0,95385.0,0.27698051]
[1735472350946,0.0165375,95386.0,95385.0,0.32608051]
[1735472352181,0.0165375,95386.0,95385.0,0.32208051]
[1735472352556,0.0165375,95386.0,95385.0,0.33108051]
[1735472352735,0.0165375,95386.0,95385.0,0.33008051]
[1735472353083,0.0165375,95386.0,95385.0,0.33108051]
[1735472353242,8.54e-05,95386.0,95385.0,0.33108051]
[1735472353833,8.54e-05,95386.0,95385.0,0.33008051]
[1735472354329,8.54e-05,95386.0,95385.0,0.33308051]
[1735472356589,0.01653545,95386.0,95385.0,0.33308051]
[1735472359282,0.01653545,95386.0,95385.0,0.30344857]
[1735472363647,8.54e-05,95386.0,95385.0,0.30344857]
[1735472367519,0.01653549,95386.0,95385.0,0.30344857]
[1735472373694,8.54e-05,95386.0,95385.0,0.30344857]
[1735472377063,0.01653547,95386.0,95385.0,0.30344857]
[1735472378016,0.01653547,95386.0,95385.0,0.17344857]
[1735472381061,0.01653547,95386.0,95385.0,0.25304857]
[1735472383747,8.54e-05,95386.0,95385.0,0.25304857]
[1735472385264,8.54e-05,95386.0,95385.0,0.27837051]
[1735472386968,0.01653553,95386.0,95385.0,0.27837051]
[1735472389017,0.01653553,95386.0,95385.0,0.25304857]
[1735472390356,0.01653553,95386.0,95385.0,0.30154857]
[1735472393547,8.54e-05,95386.0,95385.0,0.30154857]
[1735472398538,0.01653551,95386.0,95385.0,0.30154857]
[1735472403511,0.3768554,95386.0,95385.0,0.0121708]
[1735472403918,0.3768554,95386.0,95385.0,0.17344857]
[1735472404223,0.3768554,95386.0,95385.0,0.07705409]
[1735472404423,0.3768554,95386.0,95385.0,0.17344857]
[1735472404931,0.3768554,95386.0,95385.0,0.16444857]
[1735472405133,0.3768554,95386.0,95385.0,0.16544857]
[1735472405538,0.3768554,95386.0,95385.0,0.16144857]
[1735472405764,0.3768554,95386.0,95385.0,0.16244857]
[1735472406476,0.3768554,95386.0,95385.0,0.06605409]
[1735472406821,0.3768554,95386.0,95385.0,0.16244857]
[1735472407128,0.39330696,95386.0,95385.0,0.16244857]
[1735472408641,0.39330696,95386.0,95385.0,0.09756528]
[1735472408844,0.39330696,95386.0,95385.0,0.16244857]
[1735472409388,0.39330696,95386.0,95385.0,0.06605409]
[1735472409976,0.39330696,95386.0,95385.0,0.0011708]
[1735472412677,0.51660347,95386.0,95385.0,0.0011708]
[1735472412885,0.13983347,95386.0,95385.0,0.0011708]
[1735472413226,0.50115191,95386.0,95385.0,0.0011708]
[1735472413447,0.50115191,95386.0,95385.0,0.0001708]
[1735472413976,0.50015191,95386.0,95385.0,0.0001708]
[1735472414328,0.78495455,95386.0,95385.0,0.0011708]
[1735472414692,0.78395455,95386.0,95385.0,0.0001708]
[1735472414916,0.78495455,95386.0,95385.0,0.0011708]
[1735472415346,0.50115191,95386.0,95385.0,0.0011708]
[1735472415899,0.48387707,95386.0,95385.0,0.0011708]
[1735472416247,0.48887707,95386.0,95385.0,0.0011708]
[1735472416653,0.48387707,95386.0,95385.0,0.0011708]
[1735472416863,0.4561554,95386.0,95385.0,0.0011708]
[1735472417642,0.4601554,95386.0,95385.0,0.0011708]
[1735472417846,0.48787707,95386.0,95385.0,0.0011708]
[1735472418442,0.48787707,95386.0,95367.0,0.09227474]
[1735472418648,0.37677,95385.0,95367.0,0.09227474]
[1735472419266,0.00491196,95384.0,95367.0,0.09227474]
[1735472419467,0.37677,95383.0,95367.0,0.09227474]
[1735472420189,0.01645394,95380.0,95367.0,0.09327474]
[1735472420412,0.37677,95379.0,95367.0,0.09327474]
[1735472420614,0.37677,95379.0,95367.0,0.09227474]
[1735472422741,0.00162886,95378.0,95367.0,0.09227474]
[1735472422939,0.37677,95377.0,95367.0,0.09227474]
[1735472423257,0.00162443,95376.0,95367.0,0.09244554]
[1735472423459,0.37677,95375.0,95367.0,0.09244554]
[1735472423819,0.00162001,95374.0,95367.0,0.09244554]
[1735472424048,0.37677,95373.0,95367.0,0.09244554]
[1735472424546,0.00160501,95372.0,95367.0,0.09244554]
[1735472424866,0.37677,95371.0,95367.0,0.09244554]
[1735472425189,0.00160058,95370.0,95367.0,0.09244554]
[1735472425307,0.37677,95369.0,95367.0,0.09244554]
[1735472425512,0.00159616,95368.0,95367.0,0.09244554]
[1735472425765,0.37836616,95368.0,95367.0,0.09244554]
[1735472426985,0.39482066,95368.0,95367.0,0.09244554]
[1735472428706,0.39582066,95368.0,95367.0,0.09244554]
[1735472430424,0.39964879,95368.0,95367.0,0.09244554]
[1735472433484,0.38319429,95368.0,95367.0,0.09244554]
[1735472436618,0.39964879,95368.0,95367.0,0.09244554]
[1735472440780,0.39964879,95368.0,95367.0,0.08933833]
[1735472443422,0.38319429,95368.0,95367.0,0.08933833]
[1735472446680,0.39964869,95368.0,95367.0,0.08933833]
[1735472447940,0.39973409,95368.0,95367.0,0.08933833]
[1735472449193,0.02296409,95368.0,95367.0,0.08933833]
[1735472449553,0.0175398,95368.0,95367.0,0.08933833]
[1735472449993,0.3943098,95368.0,95367.0,0.08933833]
[1735472450466,0.39973577,95368.0,95367.0,0.08933833]
[1735472453461,0.38328137,95368.0,95367.0,0.08933833]
[1735472458419,0.39973568,95368.0,95367.0,0.08933833]
[1735472463571,0.38328137,95368.0,95367.0,0.16773833]
[1735472464737,0.00651137,95368.0,95367.0,0.16773833]
[1735472464961,0.38328137,95368.0,95367.0,0.16773833]
[1735472467076,0.39973527,95368.0,95367.0,0.16773833]
[1735472473475,0.38328137,95368.0,95367.0,0.16773833]
[1735472475985,0.38328137,95368.0,95367.0,0.08933833]
[1735472476554,0.39973555,95368.0,95367.0,0.08933833]
[1735472479172,0.39973555,95368.0,95367.0,0.0001708]
[1735472479727,0.39973555,95368.0,95367.0,0.08933833]
[1735472483060,0.39973555,95368.0,95367.0,0.0001708]
[1735472483655,0.38328137,95368.0,95367.0,0.0001708]
[1735472484306,0.41100304,95368.0,95367.0,0.0001708]
[1735472484458,0.38328137,95368.0,95367.0,0.0001708]
[1735472486994,0.39973673,95368.0,95367.0,0.0001708]
[1735472487178,0.4274584,95368.0,95367.0,0.0001708]
[1735472487377,0.47783673,95368.0,95367.0,0.0001708]
[1735472489466,0.79612646,95368.0,95367.0,0.0001708]
[1735472490002,0.47683673,95368.0,95367.0,0.0001708]
[1735472490117,0.48083673,95368.0,95367.0,0.0001708]
[1735472490570,0.48383673,95368.0,95367.0,0.0001708]
[1735472491634,0.48283673,95368.0,95367.0,0.0011708]
[1735472491846,0.48683673,95368.0,95367.0,0.0011708]
[1735472493609,0.47038137,95368.0,95367.0,0.0011708]
[1735472495775,0.46638137,95368.0,95367.0,0.0011708]
[1735472495995,0.47038137,95368.0,95367.0,0.0011708]
[1735472496701,0.48283751,95368.0,95367.0,0.0011708]
[1735472497367,0.47983751,95368.0,95367.0,0.0011708]
[1735472497565,0.47983751,95368.0,95367.0,0.0001708]
[1735472497566,0.47683751,95368.0,95367.0,0.0001708]
[1735472497764,0.48483751,95368.0,95367.0,0.0011708]
[1735472497979,0.48483751,95368.0,95367.0,0.0001708]
[1735472498373,0.50594313,95368.0,95367.0,0.0011708]
[1735472498547,0.49683751,95368.0,95367.0,0.0011708]
[1735472499290,0.21712214,95368.0,95367.0,0.0011708]
[1735472499484,0.22971082,95368.0,95367.0,0.0011708]
[1735472500214,0.22856036,95368.0,95367.0,0.0011708]
[1735472503686,0.212104,95368.0,95367.0,0.0011708]
[1735472506712,0.22856036,95368.0,95367.0,0.0011708]
[1735472507878,0.22864576,95368.0,95367.0,0.0011708]
[1735472510773,0.5121404,95368.0,95367.0,0.0011708]
[1735472513740,0.49568404,95368.0,95367.0,0.0011708]
[1735472513979,0.29558004,95368.0,95367.0,0.0011708]
[1735472514172,0.49568404,95368.0,95367.0,0.0011708]
[1735472516304,0.2121894,95368.0,95367.0,0.0011708]
[1735472516913,0.22864542,95368.0,95367.0,0.0011708]
[1735472523689,0.2121894,95368.0,95367.0,0.0011708]
[1735472527601,0.2121894,95368.0,95359.0,0.07208539]
[1735472527826,0.200104,95367.0,95359.0,0.07208539]
[1735472528894,0.201104,95367.0,95359.0,0.07208539]
[1735472529120,0.28385844,95363.0,95359.0,0.07208539]
[1735472529317,0.200104,95362.0,95359.0,0.07208539]
[1735472530230,0.28385844,95361.0,95359.0,0.07208539]
[1735472530538,0.200104,95360.0,95359.0,0.07213624]
[1735472531272,0.48396244,95360.0,95359.0,0.07213624]
[1735472531632,0.48696244,95360.0,95359.0,0.07213624]
[1735472532085,0.48996244,95360.0,95359.0,0.07213624]
[1735472533054,0.206104,95360.0,95359.0,0.07213624]
[1735472535837,0.206104,95360.0,95359.0,0.11903624]
[1735472542836,0.206104,95360.0,95359.0,0.11920704]
[1735472557332,0.006,95360.0,95359.0,0.11920704]
[1735472557939,0.206104,95360.0,95359.0,0.11920704]
[1735472568819,0.006,95360.0,95359.0,0.11920704]
[1735472568982,0.206104,95360.0,95359.0,0.11920704]
[1735472570011,0.206104,95360.0,95359.0,0.07230704]
[1735472589105,0.200104,95360.0,95359.0,0.06855787]
[1735472589308,0.002,95360.0,95359.0,0.06855787]
[1735472589534,0.005,95360.0,95359.0,0.06855787]
[1735472589791,0.205104,95360.0,95359.0,0.06855787]
[1735472590006,0.005,95360.0,95359.0,0.06855787]
[1735472590236,0.205104,95360.0,95359.0,0.06855787]
[1735472590689,0.203104,95360.0,95359.0,0.06855787]
[1735472590938,0.202104,95360.0,95359.0,0.06855787]
[1735472591274,0.204104,95360.0,95359.0,0.06855787]
[1735472597483,0.204104,95360.0,95359.0,0.06706787]
[1735472603179,0.2041894,95360.0,95359.0,0.06706787]
[1735472604590,0.0040854,95360.0,95359.0,0.06706787]
[1735472605003,0.2041894,95360.0,95359.0,0.06706787]
[1735472610674,0.2041894,95360.0,95359.0,0.06020813]
[1735472612623,0.24337064,95366.0,95359.0,0.06020813]
[1735472612785,5.05,95365.0,95359.0,0.06020813]
[1735472613590,5.05,95367.0,95359.0,0.06020813]
[1735472614170,0.003,95366.0,95359.0,0.06020813]
[1735472614386,5.05,95365.0,95359.0,0.06020813]
[1735472614720,8.54e-05,95360.0,95359.0,0.06020813]
[1735472614894,5.0500854,95360.0,95359.0,0.06020813]
[1735472617506,5.0520854,95360.0,95359.0,0.06020813]
[1735472642108,6.6778144,95360.0,95359.0,0.06020813]
[1735472642309,5.0520854,95360.0,95359.0,0.06020813]
[1735472642473,6.6467874,95360.0,95359.0,0.06020813]
[1735472642673,6.6827834,95360.0,95359.0,0.06020813]
[1735472644570,6.7353114,95360.0,95359.0,0.06020813]
[1735472644830,6.7383114,95360.0,95359.0,0.06020813]
[1735472645031,6.7322344,95360.0,95359.0,0.06020813]
[1735472645261,6.43962932,95360.0,95359.0,0.06020813]
[1735472645551,6.43963,95360.0,95359.0,0.06020813]
[1735472646526,6.401322,95360.0,95359.0,0.06020813]
[1735472647049,1.630196,95360.0,95359.0,0.06020813]
[1735472647248,1.671942,95365.0,95359.0,0.06020813]
[1735472647442,1.686353,95364.0,95359.0,0.06020813]
[1735472647627,1.677276,95365.0,95359.0,0.06020813]
[1735472648374,1.619976,95364.0,95359.0,0.06020813]
[1735472648691,1.619976,95365.0,95359.0,0.06020813]
[1735472648883,1.637812,95365.0,95359.0,0.06020813]
[1735472649502,1.670612,95364.0,95359.0,0.06020813]
[1735472649896,1.670612,95365.0,95359.0,0.06020813]
[1735472650831,1.673612,95365.0,95359.0,0.06020813]
[1735472651040,1.915745,95364.0,95359.0,0.06020813]
[1735472651377,1.784446,95363.0,95359.0,0.06020813]
[1735472651584,1.781523,95364.0,95359.0,0.06020813]
[1735472652007,1.781523,95364.0,95359.0,0.05548099]
[1735472652221,1.817597,95365.0,95359.0,0.05548099]
[1735472652424,0.002,95364.0,95359.0,0.05548099]
[1735472652627,1.893306,95364.0,95359.0,0.05548099]
[1735472652963,1.830773,95363.0,95359.0,0.05548099]
[1735472653690,1.552956,95363.0,95359.0,0.05548099]
[1735472653903,1.751305,95363.0,95359.0,0.05548099]
[1735472654103,1.781725,95365.0,95359.0,0.05548099]
[1735472654307,1.689834,95365.0,95359.0,0.05548099]
[1735472654517,1.690127,95364.0,95359.0,0.05548099]
[1735472654961,1.919443,95365.0,95359.0,0.05548099]
[1735472655138,1.921443,95363.0,95359.0,0.05548099]
[1735472655497,1.687127,95362.0,95359.0,0.05548099]
[1735472655847,1.970904,95365.0,95359.0,0.05548099]
[1735472656259,1.970904,95365.0,95359.0,0.04654099]
[1735472656476,1.74693397,95364.0,95359.0,0.04654099]
[1735472656624,1.742905,95365.0,95359.0,0.04654099]
[1735472656823,1.774889,95364.0,95359.0,0.04654099]
[1735472657028,1.74108,95363.0,95359.0,0.04654099]
[1735472657236,1.779211,95362.0,95359.0,0.04654099]
[1735472657709,1.660348,95361.0,95359.0,0.04654099]
[1735472657892,1.616564,95360.0,95359.0,0.04654099]
[1735472659770,1.586406,95360.0,95359.0,0.04654099]
[1735472662049,1.588406,95360.0,95359.0,0.04654099]
[1735472662480,1.588406,95360.0,95359.0,0.00022165]
[1735472666087,1.61612767,95360.0,95359.0,0.00022165]
[1735472666291,1.588406,95360.0,95359.0,0.00022165]
[1735472672083,1.90773457,95360.0,95359.0,0.00022165]
[1735472674425,0.32132857,95360.0,95359.0,0.00022165]
[1735472674984,2.86193657,95360.0,95359.0,0.00022165]
[1735472675190,0.32132857,95360.0,95359.0,0.00022165]
[1735472675396,2.542608,95360.0,95359.0,0.00022165]
[1735472675596,0.002,95360.0,95359.0,0.00022165]
[1735472675802,2.77397,95360.0,95359.0,0.00022165]
[1735472676019,2.616509,95360.0,95359.0,0.00022165]
[1735472681977,2.616509,95360.0,95359.0,0.07622165]
[1735472682473,2.56316,95360.0,95359.0,0.07622165]
[1735472683076,2.407141,95360.0,95359.0,0.07622165]
[1735472683276,2.33977,95360.0,95359.0,0.07622165]
[1735472687813,0.002,95360.0,95359.0,0.07622165]
[1735472688559,2.40755,95360.0,95359.0,0.07622165]
[1735472689465,2.340179,95360.0,95359.0,0.07622165]
[1735472692322,2.122352,95360.0,95359.0,0.07622165]
[1735472698099,0.002,95360.0,95359.0,0.07622165]
[1735472698297,2.338788,95360.0,95359.0,0.07622165]
[1735472698454,2.942937,95360.0,95359.0,0.07622165]
[1735472699422,2.310269,95360.0,95359.0,0.07622165]
[1735472699578,2.228362,95360.0,95359.0,0.07622165]
[1735472700003,2.228362,95360.0,95359.0,0.07240967]
[1735472700929,1.937674,95360.0,95359.0,0.07240967]
[1735472703755,1.937674,95360.0,95359.0,0.06949105]
[1735472705490,1.937674,95360.0,95359.0,0.05889591]
[1735472707361,1.937674,95360.0,95359.0,0.05906671]
[1735472707599,1.9377594,95360.0,95359.0,0.05906671]
[1735472710650,1.9377594,95360.0,95359.0,0.05019343]
[1735472714259,1.9357594,95360.0,95359.0,0.05019343]
[1735472714480,1.9377594,95360.0,95359.0,0.05019343]
[1735472714982,1.9357594,95360.0,95359.0,0.05019343]
[1735472715279,1.9377594,95360.0,95359.0,0.05019343]
[1735472717860,1.9377594,95360.0,95359.0,0.0001708]
[1735472718988,1.96548107,95360.0,95359.0,0.0001708]
[1735472720467,1.96348107,95360.0,95359.0,0.0001708]
[1735472720816,1.96548107,95360.0,95359.0,0.0001708]
[1735472721095,1.96748107,95360.0,95359.0,0.0001708]
[1735472721252,1.9357594,95360.0,95359.0,0.0001708]
[1735472721638,1.9397594,95360.0,95359.0,0.0001708]
[1735472730563,1.9377594,95360.0,95359.0,0.0001708]
[1735472730972,1.9377594,95360.0,95354.0,0.07819116]
[1735472731134,2.729796,95359.0,95354.0,0.07819116]
[1735472732070,0.28398807,95355.0,95354.0,0.07819116]
[1735472732277,3.07373807,95355.0,95354.0,0.07819116]
[1735472732512,0.28398807,95355.0,95354.0,0.07819116]
[1735472732698,3.07373807,95355.0,95354.0,0.07819116]
[1735472732928,0.28398807,95355.0,95354.0,0.07819116]
[1735472733322,3.07373807,95355.0,95354.0,0.07819116]
[1735472734108,3.07473807,95355.0,95354.0,0.07819116]
[1735472735255,3.03441707,95355.0,95354.0,0.07819116]
[1735472737477,2.88672507,95355.0,95354.0,0.07819116]
[1735472738773,2.602737,95355.0,95354.0,0.07819116]
[1735472743379,2.602737,95355.0,95354.0,0.07836196]
[1735472745797,0.001,95355.0,95354.0,0.07836196]
[1735472746388,3.096871,95355.0,95354.0,0.07836196]
[1735472746610,3.100024,95355.0,95354.0,0.07836196]
[1735472746814,0.001,95355.0,95354.0,0.07836196]
[1735472747107,3.100024,95355.0,95354.0,0.07836196]
[1735472747314,0.001,95355.0,95354.0,0.07836196]
[1735472747774,2.663109,95355.0,95354.0,0.07836196]
[1735472747923,2.86963,95355.0,95354.0,0.07836196]
[1735472748124,2.691304,95355.0,95354.0,0.07836196]
[1735472748399,2.613385,95355.0,95354.0,0.07836196]
[1735472749457,2.603126,95355.0,95354.0,0.07836196]
[1735472751903,2.272448,95355.0,95354.0,0.07836196]
[1735472752623,2.172758,95355.0,95354.0,0.07836196]
[1735472753569,2.139613,95355.0,95354.0,0.07836196]
[1735472757613,1.85070505,95355.0,95354.0,0.07836196]
[1735472757910,2.510619,95358.0,95354.0,0.07836196]
[1735472758099,3.30788,95357.0,95354.0,0.07836196]
[1735472758298,3.270085,95356.0,95354.0,0.07836196]
[1735472758506,3.152753,95355.0,95354.0,0.07836196]
[1735472758737,2.994297,95355.0,95354.0,0.07836196]
[1735472759539,2.933603,95355.0,95354.0,0.07836196]
[1735472762043,2.933603,95355.0,95354.0,0.06805905]
[1735472765019,2.676252,95355.0,95354.0,0.06805905]
[1735472767483,8.54e-05,95359.0,95354.0,0.06805905]
[1735472767690,2.770615,95358.0,95354.0,0.06805905]
[1735472767891,2.749588,95358.0,95354.0,0.06805905]
[1735472768084,2.786435,95358.0,95354.0,0.06805905]
[1735472768290,2.749122,95357.0,95354.0,0.06805905]
[1735472768470,2.73689,95358.0,95354.0,0.06805905]
[1735472768676,2.729482,95358.0,95354.0,0.06805905]
[1735472768877,8.54e-05,95355.0,95354.0,0.06805905]
[1735472769076,2.8031524,95355.0,95354.0,0.06805905]
[1735472769713,2.5777414,95355.0,95354.0,0.06805905]
[1735472771017,2.5777414,95355.0,95354.0,0.06231563]
[1735472779816,2.5777414,95355.0,95354.0,0.0001708]
[1735472782069,2.5817414,95355.0,95354.0,0.0001708]
[1735472782268,2.58461642,95355.0,95354.0,0.0001708]
[1735472783684,2.58661642,95355.0,95354.0,0.0001708]
[1735472783882,2.58461642,95355.0,95354.0,0.0001708]
[1735472784187,2.58661642,95355.0,95354.0,0.0001708]
[1735472787458,2.44829642,95355.0,95354.0,0.0001708]
[1735472787652,2.05173542,95355.0,95354.0,0.0001708]
[1735472787853,1.99748242,95355.0,95354.0,0.0758708]
[1735472788868,1.99548242,95355.0,95354.0,0.0758708]
[1735472789023,1.96199542,95355.0,95354.0,0.0758708]
[1735472789993,1.95999542,95355.0,95354.0,0.0758708]
[1735472790272,1.96199542,95355.0,95354.0,0.0758708]
[1735472790448,1.96399542,95355.0,95354.0,0.0758708]
[1735472790654,1.96199542,95355.0,95354.0,0.0758708]
[1735472790874,1.95999542,95355.0,95354.0,0.0768708]
[1735472795981,1.9551204,95355.0,95354.0,0.0768708]
[1735472796177,1.95625864,95355.0,95354.0,0.0768708]
[1735472796326,1.96000128,95355.0,95354.0,0.0768708]
[1735472797373,1.96000128,95355.0,95354.0,0.0758708]
[1735472797693,1.96200128,95355.0,95354.0,0.0758708]
[1735472798385,1.96100128,95355.0,95354.0,0.0758708]
[1735472798589,1.96200128,95355.0,95354.0,0.0758708]
[1735472801562,0.00696628,95355.0,95354.0,0.0758708]
[1735472801763,2.51693105,95355.0,95354.0,0.0758708]
[1735472801980,2.50530105,95355.0,95354.0,0.0758708]
[1735472803829,2.47539005,95355.0,95354.0,0.0758708]
[1735472810003,2.47539005,95355.0,95354.0,0.0758708]
[1735472813577,2.32273218,95355.0,95354.0,0.0758708]
[1735472813777,2.32166377,95355.0,95354.0,0.0758708]
[1735472815665,2.037891,95355.0,95354.0,0.0758708]
[1735472816782,2.163318,95355.0,95354.0,0.16503833]
[1735472816957,2.0074184,95355.0,95354.0,0.16503833]
[1735472817970,2.0064184,95355.0,95354.0,0.16503833]
[1735472818203,2.0054184,95355.0,95354.0,0.16503833]
[1735472818494,2.0054184,95355.0,95354.0,0.16803833]
[1735472825835,2.0054184,95355.0,95354.0,0.16703833]
[1735472826333,2.0054184,95355.0,95354.0,0.16503833]
[1735472826797,2.0054184,95355.0,95354.0,0.0758708]
[1735472830903,2.0218751,95355.0,95354.0,0.0758708]
[1735472831325,2.0218751,95355.0,95354.0,0.16503833]
[1735472834639,2.0054184,95355.0,95354.0,0.16503833]
[1735472835641,8.54e-05,95355.0,95354.0,0.16503833]
[1735472835846,3.5182164,95355.0,95354.0,0.16503833]
[1735472836062,3.7409584,95355.0,95354.0,0.16503833]
[1735472836283,3.7409554,95355.0,95354.0,0.16503833]
[1735472836733,3.5838544,95355.0,95354.0,0.16503833]
[1735472837145,3.4984834,95355.0,95354.0,0.16503833]
[1735472837639,3.4083672,95355.0,95354.0,0.16503833]
[1735472841672,3.4083672,95355.0,95354.0,0.15772155]
[1735472842807,3.3600642,95355.0,95354.0,0.15772155]
[1735472843306,3.3027892,95355.0,95354.0,0.15772155]
[1735472843685,3.2863324,95355.0,95354.0,0.15772155]
[1735472845157,3.2001764,95355.0,95354.0,0.15772155]
[1735472845725,2.9538594,95355.0,95354.0,0.15772155]
[1735472846547,2.97031637,95355.0,95354.0,0.15772155]
[1735472846786,2.80951737,95355.0,95354.0,0.15772155]
[1735472847859,2.7930604,95355.0,95354.0,0.15772155]
[1735472849527,2.7930604,95355.0,95351.0,0.0498]
[1735472849730,3.234742,95354.0,95348.0,0.14458329]
[1735472849909,3.26246397,95354.0,95348.0,0.14458329]
[1735472850339,3.350279,95353.0,95348.0,0.06488329]
[1735472850757,3.36673612,95353.0,95348.0,0.06488329]
[1735472850903,3.68652,95352.0,95348.0,0.06488329]
[1735472851099,3.517387,95352.0,95348.0,0.06488329]
[1735472851309,3.28066,95352.0,95348.0,0.06488329]
[1735472852590,3.28066,95352.0,95348.0,0.06588329]
[1735472853193,0.28377277,95349.0,95348.0,0.06588329]
[1735472853405,3.70401077,95349.0,95348.0,0.06588329]
[1735472853611,3.70716377,95349.0,95348.0,0.06588329]
[1735472854064,2.937385,95349.0,95348.0,0.06588329]
[1735472854313,2.965014,95351.0,95348.0,0.06588329]
[1735472854909,0.28377277,95352.0,95348.0,0.06588329]
[1735472854910,0.28377277,95349.0,95348.0,0.06488329]
[1735472855119,3.03407377,95349.0,95348.0,0.06488329]
[1735472855289,3.03407377,95349.0,95348.0,0.06688329]
[1735472855493,0.28377277,95349.0,95348.0,0.06688329]
[1735472855733,0.28377277,95350.0,95348.0,0.06688329]
[1735472855941,2.713901,95349.0,95348.0,0.06488329]
[1735472856258,2.495087,95349.0,95348.0,0.06588329]
[1735472856480,2.233516,95349.0,95348.0,0.06488329]
[1735472856821,2.233516,95349.0,95348.0,0.06688329]
[1735472857037,2.23845351,95349.0,95348.0,0.06688329]
[1735472859688,2.25491089,95349.0,95348.0,0.06688329]
[1735472862666,2.25491089,95349.0,95348.0,0.06505409]